{"text_format":"1","workbook":"xlsx","n_sheets":4,"sheets":["Maintenance P","Capital P","Fertiliser Products","Fertiliser Budget"],"not_rendered":{"charts":0,"images":3,"macros":1,"external_links":0,"defined_names":3,"comments":2,"pivot_tables":0},"unopened":[],"bounds":{"document_bytes":16777216,"sheet_cells":100000,"rows_first":2000,"rows_last":500,"rows_between":2000,"halvings":0,"cell_chars":16384,"cell_head_chars":4096},"cells_cut":0,"cells_raw":0,"read":"whole","date_system":"1900"}

{"sheet":"Maintenance P","index":0,"n_rows":33,"n_cols":12,"rows_kept":33,"cut":false,"hidden":false,"merged":[[17,1,18,1],[17,2,18,2]]}
[null,"Maintenance P"]
[]
[null,"Maintenance P is the amount of phosphorus that needs to be replaced each year.  "]
[null,"It is influenced by soil type, landscape, grazing management and rainfall."]
[]
[null,null,null,null,null,null,null,0.8]
[]
[null,"Chart 1. Soil Loss Factor",null,null,"Chart 2. Animal Loss Factor"]
[null,"Soil Type","Soil Loss factor",null,"Grazing Management","Landscape","Animal Loss factor"]
[null,"Loams / Sandy loams","Low",null,"Rotational grazing","Flat and rolling","Very Low"]
[null,"Clay loams","Medium",null,null,"Easy Hills","Low"]
[null,"Clays","High",null,null,"Steep Hills","Medium"]
[null,null,null,null,"Set Stocked","Flat and rolling","Low"]
[null,null,null,null,null,"Easy Hills","Medium"]
[null,null,null,null,null,"Steep Hills","High"]
[]
[null,"Chart 3. Maintenance Rate kg P / DSE"]
[null,"Soil Loss Factor","Animal Loss Factor","Rainfall","Rainfall","Rainfall ","Rainfall ","Rainfall","Rainfall","Rainfall","Rainfall","Rainfall"]
[null,null,null,400,500,600,700,800,900,1000,1100,1200]
[null,"Low","Very Low",0.4,0.4,0.5,0.5,0.5,0.6,0.6,0.6,0.6]
[null,null,"Low",0.5,0.5,0.6,0.7,0.7,0.7,0.7,0.8,0.8]
[null,null,"Medium",0.6,0.7,0.8,0.8,0.8,0.9,0.9,0.9,1]
[null,null,"High",0.7,0.8,0.9,0.9,1,1,1.1000000000000001,1.1000000000000001,1.2]
[null,"Meduim","Very Low",0.6,0.6,0.7,0.7,0.8,0.8,0.8,0.9,0.9]
[null,null,"Low",0.7,0.7,0.8,0.9,0.9,1,1,1,1.1000000000000001]
[null,null,"Medium",0.8,0.9,1,1,1.1000000000000001,1.1000000000000001,1.2,1.2,1.3]
[null,null,"High",0.9,1,1.1000000000000001,1.2,1.2,1.3,1.3,1.4,1.4]
[null,"High","Very Low",0.8,0.8,0.9,1,1,1.1000000000000001,1.1000000000000001,1.1000000000000001,1.2]
[null,null,"Low",0.9,1,1.1000000000000001,1.1000000000000001,1.2,1.2,1.3,1.3,1.4]
[null,null,"Medium",1,1.1000000000000001,1.2,1.3,1.3,1.4,1.4,1.5,1.6]
[null,null,"High",1.1000000000000001,1.2,1.3,1.4,1.5,1.5,1.6,1.7,1.7]
[]
[null,"Source : Better Fertilizer Decisions Project, DPI Vic"]

{"sheet":"Capital P","index":1,"n_rows":17,"n_cols":14,"rows_kept":17,"cut":false,"hidden":false,"merged":[]}
[null,"Capital P"]
[]
[null,"Capital P is the amount of soluable phosphorus in the soil available for plant uptake."]
[null,"The aim is to build up to a specific P level and hold it there over time."]
[null,"The phosphorus buffering index (PBI) indicates how much of the applied phosphorus will be available for plant uptake."]
[null,"The higher the PBI value the tighter phosphorus will be held by the soil."]
[null,"Chart 4. Target P Level (Critical soil test value)",null,null,null,null,"Chart 5. Capital Rate (Kg/ha of P required to raise P level by one unit)"]
[null,"Test","PBI","Category","Target P level",null,"Soil Type","PBI","Colwell","Olsen"]
[null,"Colwell","15-35","Very Low",26,null,"Sand","0-50",2.2000000000000002,6]
[null,null,"36-70","Very Low",29,null,"Sandy loam","51 - 100",2.2999999999999998,8,null,null,null,8]
[null,null,"71-140","Low",34,null,"Sandy clay loam","101 - 300",2.5,9]
[null,null,"141-280","Moderate",40,null,"Clay loams","301-400",2.8,10]
[null,null,"281-840","High",55,null,"Clays","401-500",3,11]
[]
[null,"Olsen"," ",null,15]
[]
[null,"Source : Better Fertilizer Decisions Project, DPI Vic",null,null,null,null,"Source : Accounting for Nutrients on Australian Dairy Farms, DPI Vic / DPI Nsw "]

{"sheet":"Fertiliser Products","index":2,"n_rows":9,"n_cols":12,"rows_kept":9,"cut":false,"hidden":false,"merged":[]}
[null,"Fertiliser Products"]
[]
[null,"Products",null,"% P","% N","% K","% S",null,"Fertiliser cost ($/t)","Spreading cost ($/t)","Total Cost ($/t)","$/kg P"]
[null,"Single super",null,8.8000000000000007,0,0,11,null,380,40,{"$f":"I4+J4","v":420},{"$f":"K4/(1000*(D4/100))","v":4.7727272727272716}]
[null,"MAP",null,21.4,10,0,1.5,null,850,45,{"$f":"I5+J5","v":895},{"$f":"K5/(1000*(D5/100))","v":4.1822429906542054}]
[null,"DAP",null,20,18,0,1.6,null,850,45,895,4.4749999999999996]
[null,"Other 1",null,5,0,0,0,null,200,60,260,5.2]
[null,"Other 2",null,5,0,0,0,null,200,60,260,5.2]
[null,"Other 3",null,5,0,0,0,null,200,60,260,5.2]

{"sheet":"Fertiliser Budget","index":3,"n_rows":36,"n_cols":28,"rows_kept":36,"cut":false,"hidden":false,"merged":[[35,1,39,10],[1,19,1,20],[25,4,26,4],[25,8,26,8],[25,20,30,20],[1,3,1,5],[1,7,1,9],[1,15,1,17],[25,3,26,3],[25,5,26,5],[25,9,26,9],[25,11,26,13]]}
[null,"Fertiliser Budget"]
[null,null,null,"Maintenance",null,null,null,"+           Capital",null,null,null,null,null,null,null,"=        Fertiliser rate",null,null,null,"Budget"]
[]
[null,"Paddock Name",null,"Ha","Stocking Rate (dse/ha)","Maintenance (kg P/ha)",null,"Current P Level","Target P Level","Capital          (kg P/ha)",null,"No","M only","M+C","Fertiliser Product","Total              (kg P/ha)","Budget Rate (kg fert/ha)","Spread Rate (kg fert /ha)",null,"Total (tonnes)","Total Cost ($)",null,"SS","MAP","DAP","Other 1","Other 2","Other 3"]
[null,"Adam",null,0,10,{"$f":"E5*$F$26","v":8},null,15,15,{"$f":"(I5-H5)*$J$26","v":0},null,null,null,null,null,{"$f":"0","v":0},{"$f":"P5/((CHOOSE(V5,'Fertiliser Products'!$D$4,'Fertiliser Products'!$D$5,'Fertiliser Products'!$D$6,'Fertiliser Products'!$D$7,'Fertiliser Products'!$D$8,'Fertiliser Products'!$D$9))/100)","v":0},{"$f":"MROUND(Q5,25)","v":0},null,{"$f":"D5*R5/1000","v":0},{"$f":"T5*(CHOOSE(V5,'Fertiliser Products'!$K$4,'Fertiliser Products'!$K$5,'Fertiliser Products'!$K$6,'Fertiliser Products'!$K$7,'Fertiliser Products'!$K$8,'Fertiliser Products'!$K$9))","v":0},1,{"$f":"IF($V5=1,$T5,0)","v":0},{"$f":"IF($V5=2,$T5,0)","v":0},{"$f":"IF($V5=3,$T5,0)","v":0},{"$f":"IF($V5=4,$T5,0)","v":0},{"$f":"IF($V5=5,$T5,0)","v":0},{"$f":"IF($V5=6,$T5,0)","v":0}]
[null,"Geoff",null,0,10,{"$f":"E6*$F$26","v":8},null,15,15,{"$f":"(I6-H6)*$J$26","v":0},null,null,null,null,null,{"$f":"0","v":0},{"$f":"P6/((CHOOSE(V6,'Fertiliser Products'!$D$4,'Fertiliser Products'!$D$5,'Fertiliser Products'!$D$6,'Fertiliser Products'!$D$7,'Fertiliser Products'!$D$8,'Fertiliser Products'!$D$9))/100)","v":0},{"$f":"MROUND(Q6,25)","v":0},null,0,{"$f":"T6*(CHOOSE(V6,'Fertiliser Products'!$K$4,'Fertiliser Products'!$K$5,'Fertiliser Products'!$K$6,'Fertiliser Products'!$K$7,'Fertiliser Products'!$K$8,'Fertiliser Products'!$K$9))","v":0},1,0,0,0,0,0,0]
[null,"George",null,0,10,8,null,15,15,0,null,null,null,null,null,{"$f":"0","v":0},{"$f":"P7/((CHOOSE(V7,'Fertiliser Products'!$D$4,'Fertiliser Products'!$D$5,'Fertiliser Products'!$D$6,'Fertiliser Products'!$D$7,'Fertiliser Products'!$D$8,'Fertiliser Products'!$D$9))/100)","v":0},0,null,0,{"$f":"T7*(CHOOSE(V7,'Fertiliser Products'!$K$4,'Fertiliser Products'!$K$5,'Fertiliser Products'!$K$6,'Fertiliser Products'!$K$7,'Fertiliser Products'!$K$8,'Fertiliser Products'!$K$9))","v":0},1,0,0,0,0,0,0]
[null,"Luke",null,0,10,8,null,15,15,0,null,null,null,null,null,{"$f":"0","v":0},{"$f":"P8/((CHOOSE(V8,'Fertiliser Products'!$D$4,'Fertiliser Products'!$D$5,'Fertiliser Products'!$D$6,'Fertiliser Products'!$D$7,'Fertiliser Products'!$D$8,'Fertiliser Products'!$D$9))/100)","v":0},0,null,0,{"$f":"T8*(CHOOSE(V8,'Fertiliser Products'!$K$4,'Fertiliser Products'!$K$5,'Fertiliser Products'!$K$6,'Fertiliser Products'!$K$7,'Fertiliser Products'!$K$8,'Fertiliser Products'!$K$9))","v":0},1,0,0,0,0,0,0]
[null,"Bill",null,0,10,8,null,15,15,0,null,null,null,null,null,{"$f":"0","v":0},{"$f":"P9/((CHOOSE(V9,'Fertiliser Products'!$D$4,'Fertiliser Products'!$D$5,'Fertiliser Products'!$D$6,'Fertiliser Products'!$D$7,'Fertiliser Products'!$D$8,'Fertiliser Products'!$D$9))/100)","v":0},0,null,0,{"$f":"T9*(CHOOSE(V9,'Fertiliser Products'!$K$4,'Fertiliser Products'!$K$5,'Fertiliser Products'!$K$6,'Fertiliser Products'!$K$7,'Fertiliser Products'!$K$8,'Fertiliser Products'!$K$9))","v":0},1,0,0,0,0,0,0]
[null,"Charles",null,0,10,8,null,15,15,0,null,null,null,null,null,{"$f":"0","v":0},{"$f":"P10/((CHOOSE(V10,'Fertiliser Products'!$D$4,'Fertiliser Products'!$D$5,'Fertiliser Products'!$D$6,'Fertiliser Products'!$D$7,'Fertiliser Products'!$D$8,'Fertiliser Products'!$D$9))/100)","v":0},0,null,0,{"$f":"T10*(CHOOSE(V10,'Fertiliser Products'!$K$4,'Fertiliser Products'!$K$5,'Fertiliser Products'!$K$6,'Fertiliser Products'!$K$7,'Fertiliser Products'!$K$8,'Fertiliser Products'!$K$9))","v":0},1,0,0,0,0,0,0]
[null,"David",null,0,10,8,null,15,15,0,null,null,null,null,null,{"$f":"0","v":0},{"$f":"P11/((CHOOSE(V11,'Fertiliser Products'!$D$4,'Fertiliser Products'!$D$5,'Fertiliser Products'!$D$6,'Fertiliser Products'!$D$7,'Fertiliser Products'!$D$8,'Fertiliser Products'!$D$9))/100)","v":0},0,null,0,{"$f":"T11*(CHOOSE(V11,'Fertiliser Products'!$K$4,'Fertiliser Products'!$K$5,'Fertiliser Products'!$K$6,'Fertiliser Products'!$K$7,'Fertiliser Products'!$K$8,'Fertiliser Products'!$K$9))","v":0},1,0,0,0,0,0,0]
[null,"Eddie",null,0,10,8,null,15,15,0,null,null,null,null,null,{"$f":"0","v":0},{"$f":"P12/((CHOOSE(V12,'Fertiliser Products'!$D$4,'Fertiliser Products'!$D$5,'Fertiliser Products'!$D$6,'Fertiliser Products'!$D$7,'Fertiliser Products'!$D$8,'Fertiliser Products'!$D$9))/100)","v":0},0,null,0,{"$f":"T12*(CHOOSE(V12,'Fertiliser Products'!$K$4,'Fertiliser Products'!$K$5,'Fertiliser Products'!$K$6,'Fertiliser Products'!$K$7,'Fertiliser Products'!$K$8,'Fertiliser Products'!$K$9))","v":0},1,0,0,0,0,0,0]
[null,"Fred",null,0,10,{"$f":"E13*$F$26","v":8},null,15,15,{"$f":"(I13-H13)*$J$26","v":0},null,null,null,null,null,{"$f":"0","v":0},{"$f":"P13/((CHOOSE(V13,'Fertiliser Products'!$D$4,'Fertiliser Products'!$D$5,'Fertiliser Products'!$D$6,'Fertiliser Products'!$D$7,'Fertiliser Products'!$D$8,'Fertiliser Products'!$D$9))/100)","v":0},0,null,0,{"$f":"T13*(CHOOSE(V13,'Fertiliser Products'!$K$4,'Fertiliser Products'!$K$5,'Fertiliser Products'!$K$6,'Fertiliser Products'!$K$7,'Fertiliser Products'!$K$8,'Fertiliser Products'!$K$9))","v":0},1,0,0,0,0,0,0]
[null,"Greg",null,0,10,8,null,15,15,0,null,null,null,null,null,{"$f":"0","v":0},{"$f":"P14/((CHOOSE(V14,'Fertiliser Products'!$D$4,'Fertiliser Products'!$D$5,'Fertiliser Products'!$D$6,'Fertiliser Products'!$D$7,'Fertiliser Products'!$D$8,'Fertiliser Products'!$D$9))/100)","v":0},0,null,0,{"$f":"T14*(CHOOSE(V14,'Fertiliser Products'!$K$4,'Fertiliser Products'!$K$5,'Fertiliser Products'!$K$6,'Fertiliser Products'!$K$7,'Fertiliser Products'!$K$8,'Fertiliser Products'!$K$9))","v":0},1,0,0,0,0,0,0]
[null,"Harry",null,0,10,8,null,15,15,0,null,null,null,null,null,{"$f":"0","v":0},{"$f":"P15/((CHOOSE(V15,'Fertiliser Products'!$D$4,'Fertiliser Products'!$D$5,'Fertiliser Products'!$D$6,'Fertiliser Products'!$D$7,'Fertiliser Products'!$D$8,'Fertiliser Products'!$D$9))/100)","v":0},0,null,0,{"$f":"T15*(CHOOSE(V15,'Fertiliser Products'!$K$4,'Fertiliser Products'!$K$5,'Fertiliser Products'!$K$6,'Fertiliser Products'!$K$7,'Fertiliser Products'!$K$8,'Fertiliser Products'!$K$9))","v":0},1,0,0,0,0,0,0]
[null,"Ian",null,0,10,8,null,15,15,0,null,null,null,null,null,{"$f":"0","v":0},{"$f":"P16/((CHOOSE(V16,'Fertiliser Products'!$D$4,'Fertiliser Products'!$D$5,'Fertiliser Products'!$D$6,'Fertiliser Products'!$D$7,'Fertiliser Products'!$D$8,'Fertiliser Products'!$D$9))/100)","v":0},0,null,0,{"$f":"T16*(CHOOSE(V16,'Fertiliser Products'!$K$4,'Fertiliser Products'!$K$5,'Fertiliser Products'!$K$6,'Fertiliser Products'!$K$7,'Fertiliser Products'!$K$8,'Fertiliser Products'!$K$9))","v":0},1,0,0,0,0,0,0]
[null,"Tim",null,0,10,8,null,15,15,0,null,null,null,null,null,{"$f":"0","v":0},{"$f":"P17/((CHOOSE(V17,'Fertiliser Products'!$D$4,'Fertiliser Products'!$D$5,'Fertiliser Products'!$D$6,'Fertiliser Products'!$D$7,'Fertiliser Products'!$D$8,'Fertiliser Products'!$D$9))/100)","v":0},0,null,0,{"$f":"T17*(CHOOSE(V17,'Fertiliser Products'!$K$4,'Fertiliser Products'!$K$5,'Fertiliser Products'!$K$6,'Fertiliser Products'!$K$7,'Fertiliser Products'!$K$8,'Fertiliser Products'!$K$9))","v":0},1,0,0,0,0,0,0]
[null,"Tony",null,0,10,8,null,15,15,0,null,null,null,null,null,{"$f":"0","v":0},{"$f":"P18/((CHOOSE(V18,'Fertiliser Products'!$D$4,'Fertiliser Products'!$D$5,'Fertiliser Products'!$D$6,'Fertiliser Products'!$D$7,'Fertiliser Products'!$D$8,'Fertiliser Products'!$D$9))/100)","v":0},0,null,0,{"$f":"T18*(CHOOSE(V18,'Fertiliser Products'!$K$4,'Fertiliser Products'!$K$5,'Fertiliser Products'!$K$6,'Fertiliser Products'!$K$7,'Fertiliser Products'!$K$8,'Fertiliser Products'!$K$9))","v":0},1,0,0,0,0,0,0]
[null,"Jim",null,0,10,8,null,15,15,0,null,null,null,null,null,{"$f":"0","v":0},{"$f":"P19/((CHOOSE(V19,'Fertiliser Products'!$D$4,'Fertiliser Products'!$D$5,'Fertiliser Products'!$D$6,'Fertiliser Products'!$D$7,'Fertiliser Products'!$D$8,'Fertiliser Products'!$D$9))/100)","v":0},0,null,0,{"$f":"T19*(CHOOSE(V19,'Fertiliser Products'!$K$4,'Fertiliser Products'!$K$5,'Fertiliser Products'!$K$6,'Fertiliser Products'!$K$7,'Fertiliser Products'!$K$8,'Fertiliser Products'!$K$9))","v":0},1,0,0,0,0,0,0]
[null,"Jack",null,0,10,8,null,15,15,0,null,null,null,null,null,{"$f":"0","v":0},{"$f":"P20/((CHOOSE(V20,'Fertiliser Products'!$D$4,'Fertiliser Products'!$D$5,'Fertiliser Products'!$D$6,'Fertiliser Products'!$D$7,'Fertiliser Products'!$D$8,'Fertiliser Products'!$D$9))/100)","v":0},0,null,0,{"$f":"T20*(CHOOSE(V20,'Fertiliser Products'!$K$4,'Fertiliser Products'!$K$5,'Fertiliser Products'!$K$6,'Fertiliser Products'!$K$7,'Fertiliser Products'!$K$8,'Fertiliser Products'!$K$9))","v":0},1,0,0,0,0,0,0]
[null,"Kevin",null,0,10,8,null,15,15,0,null,null,null,null,null,{"$f":"0","v":0},{"$f":"P21/((CHOOSE(V21,'Fertiliser Products'!$D$4,'Fertiliser Products'!$D$5,'Fertiliser Products'!$D$6,'Fertiliser Products'!$D$7,'Fertiliser Products'!$D$8,'Fertiliser Products'!$D$9))/100)","v":0},0,null,0,{"$f":"T21*(CHOOSE(V21,'Fertiliser Products'!$K$4,'Fertiliser Products'!$K$5,'Fertiliser Products'!$K$6,'Fertiliser Products'!$K$7,'Fertiliser Products'!$K$8,'Fertiliser Products'!$K$9))","v":0},1,0,0,0,0,0,0]
[null,"Leo",null,0,10,8,null,15,15,0,null,null,null,null,null,{"$f":"0","v":0},{"$f":"P22/((CHOOSE(V22,'Fertiliser Products'!$D$4,'Fertiliser Products'!$D$5,'Fertiliser Products'!$D$6,'Fertiliser Products'!$D$7,'Fertiliser Products'!$D$8,'Fertiliser Products'!$D$9))/100)","v":0},0,null,0,{"$f":"T22*(CHOOSE(V22,'Fertiliser Products'!$K$4,'Fertiliser Products'!$K$5,'Fertiliser Products'!$K$6,'Fertiliser Products'!$K$7,'Fertiliser Products'!$K$8,'Fertiliser Products'!$K$9))","v":0},1,0,0,0,0,0,0]
[null,"Sue",null,0,10,8,null,15,15,0,null,null,null,null,null,{"$f":"0","v":0},{"$f":"P23/((CHOOSE(V23,'Fertiliser Products'!$D$4,'Fertiliser Products'!$D$5,'Fertiliser Products'!$D$6,'Fertiliser Products'!$D$7,'Fertiliser Products'!$D$8,'Fertiliser Products'!$D$9))/100)","v":0},0,null,0,{"$f":"T23*(CHOOSE(V23,'Fertiliser Products'!$K$4,'Fertiliser Products'!$K$5,'Fertiliser Products'!$K$6,'Fertiliser Products'!$K$7,'Fertiliser Products'!$K$8,'Fertiliser Products'!$K$9))","v":0},1,0,0,0,0,0,0]
[null,"Ash",null,0,10,8,null,15,15,0,null,null,null,null,null,{"$f":"0","v":0},{"$f":"P24/((CHOOSE(V24,'Fertiliser Products'!$D$4,'Fertiliser Products'!$D$5,'Fertiliser Products'!$D$6,'Fertiliser Products'!$D$7,'Fertiliser Products'!$D$8,'Fertiliser Products'!$D$9))/100)","v":0},0,null,0,{"$f":"T24*(CHOOSE(V24,'Fertiliser Products'!$K$4,'Fertiliser Products'!$K$5,'Fertiliser Products'!$K$6,'Fertiliser Products'!$K$7,'Fertiliser Products'!$K$8,'Fertiliser Products'!$K$9))","v":0},1,0,0,0,0,0,0]
[null,null,null,null,16,null,null,null,null,null,null,null,null,null,null,null,null,null,null,null,null,1]
[null,null,null,{"$f":"SUM(D5:D25)","v":0},"Maintenance rate kg P/dse",{"$f":"'Maintenance P'!H6","v":0.8},null,null,"Capital rate    kg P/unit",{"$f":"'Capital P'!N10","v":8},true,"Change all",null,null,null,null,null,{"$f":"'Fertiliser Products'!B4","v":"Single super"},null,{"$f":"W27","v":0},{"$f":"SUM(U5:U25)","v":0},1]
[null,null,null,null,null,null,null,null,null,null,null,null,null,null,null,null,null,{"$f":"'Fertiliser Products'!B5","v":"MAP"},null,{"$f":"X27","v":0},null,null,{"$f":"SUM(W5:W26)","v":0},{"$f":"SUM(X5:X26)","v":0},0,0,0,0]
[null,null,null,null,null,null,null,null,null,null,null,null,null,null,null,null,null,{"$f":"'Fertiliser Products'!B6","v":"DAP"},null,{"$f":"Y27","v":0}]
[null,null,null,null,null,null,null,null,null,null,null,null,null,null,null,null,null,{"$f":"'Fertiliser Products'!B7","v":"Other 1"},null,{"$f":"Z27","v":0}]
[null,null,null,null,null,null,null,null,null,null,null,null,null,null,null,null,null,{"$f":"'Fertiliser Products'!B8","v":"Other 2"},null,{"$f":"AA27","v":0}]
[null,null,null,null,null,null,null,null,null,null,null,null,null,null,null,null,null,{"$f":"'Fertiliser Products'!B9","v":"Other 3"},null,{"$f":"AB27","v":0}]
[]
[]
[null,null,null,null," "]
[]
[null,"PLEASE NOTE: To use this tool you may need to enable to macros on your computer. Firstly, click 'Enable Content' at the top of this page if the option is there. Then complete the following instructions:\nFile > Options > Trust Center > Trust Center Settings > Macro Settings > Tick 'Enable all macros' \n\nPlease contact Holbrook Landcare Network if any issues arise with the tool on (02) 6036 3181"]